bitfinex-derivatives/quotes_ETHF0:USTF0_20251028
["timestamp","ask_amount","ask_price","bid_price","bid_amount"]
[1761615849196,40.8,4141.4,4141.3,2.98873287]
[1761615850189,41.5204,4141.4,4141.3,1.30463287]
[1761615850389,41.5204,4141.4,4141.3,0.65523063]
[1761615850691,0.4988,4142.0,4141.3,1.62373063]
[1761615850896,1.7146,4142.0,4141.9,1.1835]
[1761615851091,1.7146,4142.0,4141.9,1.83873063]
[1761615851398,41.7942,4142.0,4141.9,2.98873287]
[1761615851799,0.4988,4142.2,4142.1,1.6841]
[1761615851990,1.2192,4142.6,4142.2,0.7156]
[1761615852200,1.7146,4142.6,4142.5,1.1835]
[1761615852395,1.7146,4142.6,4142.5,1.83873063]
[1761615852796,42.5146,4142.6,4142.5,2.11683063]
[1761615853298,41.7942,4142.6,4142.5,2.61743063]
[1761615853697,41.7942,4142.6,4142.5,3.26674137]
[1761615854100,41.7942,4142.6,4142.5,2.61743063]
[1761615854897,42.5146,4142.6,4142.5,2.61743063]
[1761615856098,41.7942,4142.6,4142.5,2.61743063]
[1761615856396,41.2988,4142.6,4142.5,2.61743063]
[1761615856601,42.0192,4142.6,4142.5,2.11683063]
[1761615857203,42.0192,4142.6,4142.5,1.83873063]
[1761615857502,42.0192,4142.6,4142.5,0.65523063]
[1761615858105,1.7146,4142.0,4141.9,1.83281074]
[1761615858304,1.7146,4142.0,4141.9,2.48693718]
[1761615858805,1.9675,4142.0,4141.9,0.65412644]
[1761615859303,1.7146,4142.0,4141.9,1.83762644]
[1761615860404,42.5146,4142.0,4141.9,1.83762644]
[1761615863008,42.7675,4142.0,4141.9,0.65412644]
[1761615863512,1.7146,4141.5,4141.4,1.36491074]
[1761615863703,1.7146,4141.5,4141.4,2.48740297]
[1761615863906,1.8784,4141.5,4141.4,0.65459223]
[1761615864507,42.6784,4141.5,4141.4,0.65459223]
[1761615866401,41.958,4141.5,4140.8,0.64931074]
[1761615866605,1.8649,4141.0,4140.9,0.65448755]
[1761615872408,0.7204,4140.9,4140.5,0.00249284]
[1761615872614,1.7146,4140.6,4140.5,0.00249284]
[1761615872914,1.7146,4140.6,4140.5,0.65638288]
[1761615873313,42.5146,4140.6,4140.5,0.65638288]
[1761615873812,42.5146,4140.6,4140.5,1.37198288]
[1761615874116,42.5146,4140.6,4140.5,2.48919362]
[1761615874416,42.5146,4140.6,4140.5,1.83988288]
[1761615875412,42.5146,4140.6,4140.5,1.83959737]
[1761615876813,42.5146,4140.6,4140.5,1.37169737]
[1761615877911,0.09754319,4140.8,4140.5,1.37169737]
[1761615878215,21.744,4141.8,4140.7,0.7274]
[1761615878415,21.744,4141.8,4140.8,0.65360453]
[1761615878615,21.744,4141.8,4140.7,0.7274]
[1761615878817,21.83960564,4141.8,4140.8,0.65339123]
[1761615879016,40.8,4140.9,4140.7,0.7274]
[1761615879211,40.8,4140.9,4140.8,1.38079123]
[1761615880415,40.8,4140.9,4140.8,0.7274]
[1761615881013,40.8,4140.9,4140.8,1.37966993]
[1761615882411,40.8,4140.9,4140.8,0.7274]
[1761615883412,40.8,4140.9,4140.5,0.25089284]
[1761615883716,48.8,4140.9,4140.5,0.00249284]
[1761615884113,8.0,4140.9,4140.5,0.00249284]
[1761615884314,8.0,4140.9,4140.5,0.25089284]
[1761615884513,40.8,4140.6,4140.5,0.00249284]
[1761615887421,40.8,4140.6,4140.5,0.97829284]
[1761615889420,40.8,4140.6,4140.5,0.25089284]
[1761615890021,40.8,4140.6,4140.5,0.97829284]
[1761615890022,48.8,4140.6,4140.5,0.97829284]
[1761615891423,40.8,4140.6,4140.5,0.97829284]
[1761615892817,40.8,4140.6,4140.5,2.42794091]
[1761615893021,40.8,4140.6,4140.5,3.08155065]
[1761615893226,40.8,4140.6,4140.5,3.57615065]
[1761615897823,40.8,4140.6,4140.5,3.08155065]
[1761615898616,40.8,4140.6,4140.5,2.05420258]
[1761615898924,40.8,4140.6,4140.5,3.08155065]
[1761615900424,40.8,4140.6,4140.5,3.57615065]
[1761615901027,0.09560564,4141.8,4141.7,1.6443]
[1761615901220,22.77634807,4142.9,4141.7,3.32525781]
[1761615901525,21.749,4143.1,4142.6,0.7274]
[1761615901719,1.02734807,4142.9,4142.6,0.7274]
[1761615901928,40.8,4142.7,4142.6,0.7274]
[1761615902119,40.8,4142.7,4142.5,0.2484]
[1761615902324,40.8,4142.7,4142.5,0.9758]
[1761615902522,40.8,4142.7,4142.6,0.7274]
[1761615903223,40.8,4142.7,4142.6,1.1497]
[1761615903718,40.8,4142.7,4142.5,0.2484]
[1761615904021,0.0362,4142.1,4142.0,0.2484]
[1761615904226,0.0362,4142.1,4141.6,1.02734807]
[1761615904227,0.0543,4142.1,4141.6,1.54314807]
[1761615904424,0.0362,4142.1,4141.7,1.16905563]
[1761615904626,0.0362,4142.1,4142.0,0.3123]
[1761615905020,0.0362,4142.1,4142.0,0.8281]
[1761615905220,40.8362,4142.1,4142.0,0.8281]
[1761615905721,40.8362,4142.1,4142.0,1.4811]
[1761615906717,40.8362,4142.1,4141.7,1.02734807]
[1761615906919,0.0177,4141.9,4141.8,0.7602]
[1761615907225,0.0177,4141.7,4141.6,0.7602]
[1761615907424,0.0118,4141.4,4141.3,0.7602]
[1761615907627,0.0177,4141.4,4141.3,0.7602]
[1761615907925,40.8177,4141.4,4141.3,0.7602]
[1761615908124,0.0118,4141.2,4141.1,0.7602]
[1761615908327,0.0118,4141.2,4141.1,1.9566843]
[1761615908521,0.0118,4141.2,4140.7,0.7602]
[1761615908728,1.04504807,4140.9,4140.8,0.65288105]
[1761615908926,1.03914807,4140.9,4140.4,0.7602]
[1761615909227,0.0177,4140.6,4140.5,1.01109284]
[1761615909427,0.0118,4140.6,4140.5,1.01109284]
[1761615909815,40.8118,4140.6,4140.5,1.01109284]
[1761615910017,40.8118,4140.6,4140.5,1.55469284]
[1761615914030,40.8118,4140.6,4140.5,2.20647431]
[1761615915430,40.8118,4140.6,4140.5,2.74857431]
[1761615916324,40.8118,4140.6,4140.5,2.20647431]
[1761615917025,40.8177,4140.6,4140.5,1.66287431]
[1761615917831,40.8177,4140.6,4140.5,0.65427431]
[1761615918033,40.8177,4140.6,4140.5,0.00249284]
[1761615918230,41.84504807,4140.6,4140.5,0.00249284]
[1761615921028,2.15652014,4142.3,4140.6,0.7602]
[1761615921029,0.0059,4141.8,4140.6,0.7602]
[1761615921226,0.0059,4141.8,4140.5,2.43344091]
[1761615921227,0.0118,4141.2,4141.1,2.87324807]
[1761615921423,0.0177,4141.2,4140.6,1.02734807]
[1761615921628,0.0118,4140.8,4140.7,0.7602]
[1761615922432,0.0118,4140.8,4140.7,1.3038]
[1761615922930,0.0118,4140.8,4140.7,1.8459]
[1761615924236,40.8,4141.1,4140.7,2.49818901]
[1761615924442,40.8,4141.1,4141.0,1.6217]
[1761615929440,40.8,4141.1,4141.0,2.1638]
[1761615929739,0.0059,4141.1,4141.0,2.1638]
[1761615929939,0.0118,4141.1,4141.0,2.81595764]
[1761615930240,0.0118,4141.1,4141.0,2.27385764]
[1761615930440,0.0177,4141.1,4141.0,1.73025764]
[1761615930640,0.0177,4141.1,4141.0,1.0781]
[1761615930842,40.8118,4141.1,4141.0,1.6217]
[1761615932643,40.8177,4141.1,4141.0,1.0781]
[1761615933237,40.8177,4141.1,4141.0,1.7308543]
[1761615934044,40.8177,4141.1,4141.0,1.0781]
[1761615934244,40.8118,4141.1,4141.0,1.0781]
[1761615934448,40.8118,4141.1,4140.7,0.8232]
[1761615934746,40.8118,4141.1,4140.8,0.65296005]
[1761615934940,40.8118,4141.1,4140.9,0.8232]
[1761615935340,40.8118,4141.1,4140.7,0.8232]
[1761615935544,40.8118,4141.1,4140.8,0.65323675]
[1761615935737,40.8118,4141.1,4140.8,0.8232]
[1761615935938,0.0118,4141.1,4140.8,0.8232]
[1761615936246,0.0118,4141.1,4141.0,1.1144]
[1761615936436,0.0118,4141.1,4141.0,1.5787]
[1761615936939,40.8118,4141.1,4141.0,1.5787]
[1761615937243,40.8,4141.1,4141.0,2.75757419]
[1761615939240,40.8,4141.1,4141.0,1.76827419]
[1761615939437,40.8,4141.1,4141.0,0.65387419]
[1761615939748,40.8,4141.1,4140.6,1.2875]
[1761615940047,40.8,4141.1,4140.8,0.8232]
[1761615940348,40.8,4141.1,4141.0,1.1144]
[1761615940639,40.8,4141.1,4141.0,0.2912]
[1761615940841,40.8,4141.1,4141.0,1.1144]
[1761615941746,40.8,4141.1,4140.7,0.8232]
[1761615941948,21.748,4141.3,4140.9,0.8232]
[1761615942349,40.8,4141.0,4140.9,0.8232]
[1761615942648,40.8,4141.0,4140.9,1.47517458]
[1761615944254,40.8,4141.0,4140.9,0.8232]
[1761615948653,40.8,4141.0,4140.6,0.8232]
[1761615948854,1.02734807,4141.2,4140.7,1.47525799]
[1761615949050,1.02734807,4140.9,4140.5,0.32039284]
[1761615949356,40.8,4140.7,4140.5,1.14359284]
[1761615949949,42.10331012,4140.7,4140.5,1.14359284]
[1761615950957,42.10331012,4140.7,4140.5,0.00249284]
[1761615951152,1.30331012,4140.6,4140.5,0.00249284]
[1761615951359,3.04240872,4141.1,4140.5,0.00249284]
[1761615951859,40.8,4140.6,4140.5,0.00249284]
[1761615952448,1.30359998,4140.8,4140.6,0.8232]
[1761615952652,1.30359998,4141.5,4141.4,0.8232]
[1761615952855,1.30359998,4141.5,4141.4,1.2875]
[1761615953057,42.10359998,4141.5,4141.4,1.2875]
[1761615953255,42.10359998,4141.5,4141.4,0.8232]
[1761615953653,42.10359998,4141.5,4141.1,0.8232]
[1761615954058,42.10987997,4141.5,4141.2,0.64755448]
[1761615954259,42.10987997,4141.5,4141.0,0.2912]
[1761615954460,42.10987997,4141.5,4141.1,0.64758336]
[1761615954665,42.10987997,4141.5,4141.2,0.64758336]
[1761615954967,42.10987997,4141.5,4141.0,1.1144]
[1761615955167,42.10987997,4141.5,4141.1,0.64758337]
[1761615955367,42.10987997,4141.5,4141.2,0.64758337]
[1761615955568,42.10987997,4141.5,4141.0,1.1144]
[1761615955769,42.10987997,4141.5,4141.1,0.64757667]
[1761615955964,42.10987997,4141.5,4141.2,0.64757667]
[1761615956163,42.10987997,4141.5,4141.0,1.1144]
[1761615956363,42.10987997,4141.5,4141.1,0.64757825]
[1761615956563,43.41347995,4141.5,4141.0,1.1144]
[1761615957564,43.41347995,4141.5,4140.7,0.8232]
[1761615957767,43.41347995,4141.5,4140.8,0.64758074]
[1761615958069,2.61347995,4141.5,4140.9,0.64758074]
[1761615958369,2.61347995,4141.5,4141.0,1.47078074]
[1761615958568,2.61347995,4141.5,4141.0,0.8232]
[1761615958569,40.8,4141.1,4141.0,0.8232]
[1761615958765,40.8,4141.1,4141.0,1.7619807]
[1761615960560,40.8,4141.1,4141.0,2.2262807]
[1761615963072,40.8,4141.1,4141.0,1.7619807]
[1761615964073,40.8,4141.1,4141.0,1.1144]
[1761615964270,42.10987997,4141.1,4140.6,0.61511661]
[1761615964469,2.61347995,4141.1,4140.7,0.64767971]
[1761615964674,2.61347995,4141.1,4140.6,0.61511661]
[1761615964675,1.30359998,4140.9,4140.6,0.61511661]
[1761615964975,40.8,4140.7,4140.6,0.61511661]
[1761615965471,40.8,4140.7,4140.6,1.06041661]
[1761615965671,40.8,4140.7,4140.6,2.16447173]
[1761615966172,40.8,4140.7,4140.6,1.69897173]
[1761615966572,40.8,4140.7,4140.6,2.16447173]
[1761615966774,40.8,4140.7,4140.6,1.25367173]
[1761615967170,40.8,4140.7,4140.6,1.69997173]
[1761615968474,40.8,4140.7,4140.6,2.15367173]
[1761615972176,40.8,4140.7,4140.6,3.4635517]
[1761615972677,40.8,4140.7,4140.6,4.11506369]
[1761615974281,40.8,4140.7,4140.6,2.15367173]
[1761615974680,40.8,4140.7,4140.6,1.90509224]
[1761615974880,40.8,4140.7,4140.6,1.25367173]
[1761615976372,40.8,4140.7,4140.6,1.69997173]
[1761615977783,40.8,4140.7,4140.6,1.25367173]
[1761615978081,40.8,4140.7,4140.6,1.31105512]
[1761615981383,40.8,4140.7,4140.6,1.75735512]
[1761615983284,40.8,4140.7,4140.6,1.31105512]
[1761615984184,40.8,4140.7,4140.6,0.6725]
[1761615988994,40.8,4140.7,4140.5,0.67499284]
[1761615989190,40.8,4140.7,4140.0,0.96932051]
[1761615989191,0.1279,4140.0,4139.8,0.61631335]
[1761615989391,0.2558,4139.7,4139.6,1.5725]
[1761615989693,40.8,4139.7,4139.6,1.5725]
[1761615990195,40.80286812,4139.7,4139.6,1.57533927]
[1761615991996,40.92249602,4139.7,4139.6,1.57533927]
[1761615995202,0.2917,4139.5,4138.9,0.86713295]
[1761615995393,0.5834,4138.8,4138.7,0.3866]
[1761615995896,41.6751,4138.8,4138.7,0.3866]
[1761615996396,41.6751,4138.8,4138.7,0.3889608]
[1761615996599,41.6751,4138.8,4138.7,0.0023608]
[1761615999394,0.8751,4138.3,4138.2,0.6846]
[1761616000396,40.8,4138.8,4138.7,0.8169]
[1761616000600,40.8,4138.8,4138.7,1.5015]
[1761616009804,41.0917,4138.8,4138.7,1.5015]
[1761616010099,41.0917,4138.8,4138.7,1.0712]
[1761616011001,40.8,4138.8,4138.7,1.0712]
[1761616011301,41.0917,4138.8,4138.7,1.0712]
[1761616012102,41.0917,4138.8,4138.7,0.6846]
[1761616012303,40.8,4138.8,4138.7,1.5015]
[1761616015504,0.8751,4138.6,4138.5,0.9246]
[1761616016105,0.5834,4138.6,4138.5,1.7415]
[1761616019905,0.2917,4138.6,4138.5,1.7415]
[1761616020703,40.8,4138.8,4138.7,1.5015]
[1761616020904,40.8,4138.8,4138.7,2.52963745]
[1761616022003,40.8,4138.8,4138.7,10.52963745]
[1761616022204,40.8,4138.8,4138.7,3.9927049]
[1761616022411,40.8,4138.8,4138.7,4.26526688]
[1761616022610,40.8,4138.8,4138.7,2.52963745]
[1761616026016,40.9897,4138.8,4138.7,1.0712]
[1761616026915,40.9897,4138.8,4138.7,0.6846]
[1761616027416,0.5457,4138.6,4138.5,0.8207]
[1761616028412,0.3638,4138.6,4138.2,0.58262931]
[1761616028614,0.5457,4138.3,4138.2,0.58262931]
[1761616028917,0.3638,4138.3,4138.2,0.95442931]
[1761616029711,41.1638,4138.3,4138.2,0.95442931]
[1761616032413,41.3457,4138.3,4138.2,0.00192931]
[1761616032613,41.3457,4138.3,4138.2,0.58262931]
[1761616033412,41.3457,4138.3,4138.2,0.00192931]
[1761616036313,41.3457,4138.3,4138.2,0.58262931]
[1761616045421,41.3457,4138.3,4138.2,0.00192931]
[1761616047324,41.1638,4138.3,4138.2,2.35996676]
[1761616047526,0.1819,4139.1,4139.0,0.5981]
[1761616047731,0.3638,4139.1,4139.0,1.5562]
[1761616048536,41.1638,4139.1,4139.0,1.5562]
[1761616049138,41.3457,4139.1,4139.0,1.5562]
[1761616049839,41.3457,4139.1,4139.0,1.1788]
[1761616050947,41.1638,4139.1,4139.0,1.5562]
[1761616053636,0.1819,4139.6,4139.5,1.5562]
[1761616054036,40.9819,4139.6,4139.5,1.5562]
[1761616055038,41.0752,4139.6,4139.5,1.5562]
[1761616055342,41.0752,4139.6,4139.5,0.5807]
[1761616055543,0.2799,4138.8,4138.7,0.5295]
[1761616055840,0.2799,4138.8,4138.7,1.218]
[1761616055841,0.0933,4138.8,4138.7,1.218]
[1761616056040,0.0933,4139.4,4138.8,0.5295]
[1761616056241,0.0933,4139.1,4139.0,1.4146]
[1761616056542,0.1866,4139.1,4139.0,1.4146]
[1761616056740,40.9866,4139.1,4139.0,1.4146]
[1761616060444,40.8,4139.1,4139.0,1.4146]
[1761616061440,40.8933,4139.1,4139.0,1.0645]
[1761616062745,40.8,4139.1,4139.0,1.0645]
[1761616063838,40.8,4139.1,4139.0,1.4146]
[1761616065444,40.8,4139.1,4139.0,1.84949]
[1761616065646,40.8,4139.1,4139.0,2.06542906]
[1761616065949,40.8,4139.1,4139.0,2.44273745]
[1761616066351,40.8,4139.1,4139.0,3.52845651]
[1761616066651,40.8,4139.1,4139.0,2.50031906]
[1761616066841,40.8,4139.1,4139.0,2.06542906]
[1761616067045,40.8,4139.1,4139.0,2.50031906]
[1761616067351,40.8,4139.1,4139.0,1.84949]
[1761616068049,40.8,4139.1,4139.0,2.50031906]
[1761616068244,0.09616812,4139.7,4139.6,1.218]
[1761616068742,40.89616812,4139.7,4139.6,1.218]
[1761616069344,40.80286812,4139.7,4139.6,1.218]
[1761616083352,40.80286812,4139.7,4139.6,2.96286511]
[1761616083747,0.00286812,4139.7,4139.6,2.96286511]
[1761616084154,0.00286812,4139.7,4139.6,3.61267864]
[1761616084354,40.80286812,4139.7,4139.6,3.61267864]
[1761616085660,40.80286812,4139.7,4139.6,3.17784864]
[1761616085963,40.80286812,4139.7,4139.6,1.218]
[1761616086455,0.00286812,4139.7,4139.6,1.218]
[1761616087054,40.80286812,4139.7,4139.6,1.218]
[1761616087253,0.00286812,4139.7,4139.6,1.218]
[1761616087552,0.00286812,4139.7,4139.6,1.65283]
[1761616087958,0.00286812,4139.7,4139.6,1.218]
[1761616088157,0.00286812,4139.7,4139.6,1.86781353]
[1761616088348,0.00286812,4139.7,4139.6,1.218]
[1761616088556,40.80286812,4139.7,4139.6,1.218]
[1761616089156,40.80286812,4139.7,4139.6,1.86798624]
[1761616089356,1.30166069,4141.1,4139.6,2.30281624]
[1761616089547,1.30166069,4141.1,4139.5,1.50663511]
[1761616089548,0.14466435,4141.4,4141.1,0.7784]
[1761616089749,21.751,4142.1,4141.6,0.4591]
[1761616089953,40.8,4141.7,4141.6,0.4591]
[1761616090251,40.8,4141.7,4141.6,0.7784]
[1761616090448,40.94547704,4141.7,4141.6,0.46210396]
[1761616090858,40.94547704,4141.7,4141.6,0.00300396]
[1761616091555,40.94547704,4141.7,4141.6,0.46210396]
[1761616092359,40.94547704,4141.7,4141.6,0.78140396]
[1761616093855,40.80220008,4141.7,4141.6,1.09620396]
[1761616095253,40.9496746,4141.7,4141.6,0.00300396]
[1761616096256,40.9496746,4141.7,4141.6,0.46210396]
[1761616096457,40.80220008,4141.7,4141.6,0.46210396]
[1761616096662,40.80220008,4141.7,4141.6,1.09620396]
[1761616097149,0.00220008,4141.7,4141.6,1.09620396]
[1761616098252,40.80220008,4141.7,4141.6,1.09620396]
[1761616098857,40.80220008,4141.7,4141.6,1.53082396]
[1761616099262,0.00220008,4141.7,4141.6,1.53082396]
[1761616099462,1.31003511,4143.4,4141.8,0.4591]
[1761616099762,1.31003511,4143.4,4142.3,0.3193]
[1761616099961,1.31003511,4143.4,4142.6,0.4591]
[1761616100356,40.8,4142.7,4142.6,1.0932]
[1761616100563,40.80261072,4142.7,4142.6,1.0932]
[1761616100762,0.00261072,4142.7,4142.6,1.0932]
[1761616102264,0.00261072,4142.7,4142.6,2.83775511]
[1761616102563,0.00261072,4142.7,4142.6,2.40323511]
[1761616103461,21.744,4144.6,4142.6,2.40323511]
[1761616103462,1.31003511,4145.3,4144.5,0.4591]
[1761616103660,1.31003511,4145.3,4144.1,0.4591]
[1761616103969,1.31003511,4144.5,4143.5,0.1882]
[1761616104156,1.31003511,4144.5,4143.5,0.6473]
[1761616104362,0.00224801,4144.5,4143.6,0.7784]
[1761616104665,0.00224801,4144.5,4143.8,0.4591]
[1761616104860,0.00224801,4144.5,4143.8,0.3193]
[1761616105060,0.00224801,4144.5,4144.1,0.4591]
[1761616105262,0.00224801,4144.5,4144.1,0.7784]
[1761616105562,0.00224801,4144.5,4144.2,0.4591]
[1761616105762,0.00224801,4144.5,4144.3,0.4591]
[1761616106059,0.00224801,4144.5,4144.1,0.4591]
[1761616106259,1.31003511,4144.3,4143.5,0.1882]
[1761616106459,1.31003511,4143.9,4143.3,0.4591]
[1761616107663,1.31003511,4144.1,4143.3,0.4591]
[1761616108359,1.31003511,4143.7,4142.5,1.49823511]
[1761616108566,1.31003511,4143.7,4143.1,0.4591]
[1761616108962,1.31003511,4143.7,4143.0,0.1882]
[1761616109362,40.8,4143.5,4143.1,0.4591]
[1761616109866,40.8,4143.5,4143.0,0.1882]
[1761616110061,40.8,4143.5,4143.0,0.6473]
[1761616110266,40.8,4143.5,4142.7,0.4591]
[1761616110966,1.31003511,4143.3,4142.5,0.1882]
[1761616111366,1.31003511,4143.3,4142.6,0.4591]
[1761616113771,40.8,4143.5,4142.6,0.7784]
[1761616113964,40.8,4143.5,4142.7,0.4591]
[1761616114267,1.31003511,4143.7,4143.2,0.4414]
[1761616114665,1.31003511,4143.7,4143.0,0.1774]
[1761616114870,40.8,4143.3,4143.0,0.6188]
[1761616115070,40.8,4143.3,4142.6,0.4414]
[1761616115469,40.8,4143.3,4143.0,0.1774]
[1761616115667,40.8,4143.3,4143.2,0.4414]
[1761616117467,40.8,4143.3,4143.2,0.7203]
[1761616117669,40.8,4143.3,4143.2,1.0386]
[1761616120973,40.8,4143.3,4143.2,0.4414]
[1761616121377,40.8,4143.3,4143.2,1.0386]
[1761616123778,40.8,4143.3,4143.2,0.7203]
[1761616125478,40.8,4143.3,4143.2,0.4414]
[1761616127685,40.8,4143.3,4143.2,0.7203]
[1761616128478,40.8,4143.3,4143.0,0.1774]
[1761616128680,40.8,4143.3,4143.1,0.7203]
[1761616128879,40.8,4143.3,4143.2,0.4414]
[1761616129684,40.8,4143.3,4143.0,0.1774]
[1761616129883,40.8,4143.3,4142.6,0.7203]
[1761616130082,40.8,4143.3,4142.7,0.7203]
[1761616130282,40.8,4143.3,4142.5,0.1882]
[1761616130283,40.8,4143.3,4142.8,0.4414]
[1761616131285,42.10166069,4143.3,4142.8,0.4414]
[1761616134188,40.8,4143.3,4142.8,0.4414]
[1761616134386,40.8,4143.3,4143.2,0.7203]
[1761616134593,40.8,4143.3,4143.2,0.4414]
[1761616135485,40.8,4143.3,4143.2,1.74636817]
[1761616136386,40.8,4143.3,4143.2,2.06466817]
[1761616136791,40.8,4143.3,4143.2,1.0386]
[1761616138195,40.8,4143.3,4143.2,2.06466817]
[1761616140299,40.8,4143.3,4143.2,2.49911817]
[1761616140596,1.30166069,4144.4,4143.3,0.43444]
[1761616140805,1.30166069,4144.4,4144.1,0.4414]
[1761616141302,40.8,4144.2,4144.1,0.7203]
[1761616141695,40.8,4144.2,4143.7,1.02606817]
[1761616141998,40.8,4144.2,4143.8,0.4414]
[1761616142297,40.8,4144.2,4143.5,0.6188]
[1761616142496,40.8,4144.2,4144.1,0.4414]
[1761616142701,40.8,4144.2,4144.0,0.1774]
[1761616142901,40.8,4144.2,4144.0,0.6188]
[1761616143103,40.8,4144.2,4144.1,0.4414]
[1761616143301,40.8,4144.2,4144.0,0.1774]
[1761616143502,40.8,4144.2,4143.8,0.4414]
[1761616145302,40.8,4144.2,4144.1,0.433]
[1761616145503,40.8,4144.2,4144.0,0.1445]
[1761616146006,40.8,4144.2,4143.5,0.6104]
[1761616146200,42.10166069,4144.2,4143.5,0.6104]
[1761616146405,42.10166069,4144.2,4143.6,0.433]
[1761616146905,42.10166069,4144.2,4144.0,0.1482]
[1761616147205,42.10166069,4144.2,4144.1,0.3943]
[1761616148606,40.8,4144.2,4144.1,0.3943]
[1761616148809,40.8,4144.2,4144.1,0.8832]
[1761616149704,40.8,4144.2,4143.5,0.5717]
[1761616149909,1.02606817,4143.8,4143.5,0.1774]
[1761616150208,1.02606817,4143.8,4143.2,0.3943]
[1761616150408,1.02606817,4143.5,4143.0,0.1774]
[1761616150703,1.30166069,4143.6,4143.0,0.5717]
[1761616151109,1.30166069,4143.5,4143.0,0.5717]
[1761616151611,1.30166069,4143.5,4143.0,0.1774]
[1761616152012,1.30166069,4143.5,4143.0,0.5717]
[1761616152309,1.30166069,4143.4,4142.7,0.3943]
[1761616153410,1.30166069,4143.4,4143.1,0.3943]
[1761616153615,1.30166069,4143.5,4143.3,0.3943]
[1761616153807,1.30166069,4143.6,4143.5,0.1482]
[1761616154115,40.8,4143.7,4143.6,0.3943]
[1761616154509,40.8,4143.7,4143.6,0.8832]
[1761616155202,1.30166069,4144.4,4144.3,0.3943]
[1761616155405,0.00224801,4144.5,4144.4,0.3943]
[1761616155613,40.80224801,4144.5,4144.4,0.3943]
[1761616156009,40.80224801,4144.5,4144.4,0.6429]
[1761616156412,40.80224801,4144.5,4144.4,0.8832]
[1761616156611,40.80224801,4144.5,4144.4,0.3943]
[1761616157012,40.80224801,4144.5,4144.4,0.6429]
[1761616157820,41.82831618,4144.5,4143.5,0.1482]
[1761616158022,1.02606817,4143.7,4143.6,0.3943]
[1761616158309,1.02606817,4144.0,4143.0,0.5425]
[1761616158513,1.02606817,4143.4,4143.1,0.3943]
[1761616159004,1.02606817,4143.4,4143.0,0.1482]
[1761616159217,1.02606817,4143.1,4142.7,0.3943]
[1761616159712,1.29962514,4143.6,4142.7,0.3943]
[1761616160014,40.8,4143.0,4142.7,0.3943]
[1761616161910,40.8,4143.0,4142.6,0.3943]
[1761616162817,40.8,4143.0,4142.5,0.4368]
[1761616163018,40.8,4143.0,4142.6,0.3943]
[1761616163218,40.8,4143.0,4142.7,0.6429]
[1761616163518,40.8,4143.0,4142.8,0.3943]
[1761616163821,40.8,4143.0,4142.9,0.8832]
[1761616166122,40.8,4143.0,4142.9,0.3943]
[1761616166720,40.8,4143.0,4142.6,0.3943]
[1761616168322,42.09962514,4143.0,4142.6,0.3943]
[1761616169126,40.8,4143.0,4142.6,0.3943]
[1761616169925,1.29962514,4143.1,4142.3,0.3943]
[1761616170125,1.29962514,4143.0,4142.3,0.3943]
[1761616170425,1.29962514,4142.6,4142.0,0.1482]
[1761616170819,1.29962514,4142.6,4142.0,0.5425]
[1761616173227,1.29962514,4142.6,4142.1,0.3943]
[1761616173426,42.09962514,4142.7,4142.1,0.3943]
[1761616174228,40.8,4142.7,4142.1,0.3943]
[1761616175530,21.737,4143.0,4142.1,0.3943]
[1761616175931,40.8,4142.2,4142.1,0.3943]
[1761616178834,40.95335767,4142.2,4142.1,0.3943]
[1761616180536,40.8,4142.2,4142.1,0.8722]
[1761616183134,40.8,4142.2,4142.1,0.6286]
[1761616184237,40.8,4142.2,4142.1,0.3943]
[1761616190142,40.8,4142.2,4142.0,0.1482]
[1761616190345,40.8,4142.2,4142.0,0.5201]
[1761616190544,40.8,4142.2,4142.1,0.3719]
[1761616190842,40.8,4142.2,4142.1,0.6062]
[1761616191045,40.8,4142.2,4142.1,0.8498]
[1761616191435,40.8,4142.2,4142.1,0.6062]
[1761616193548,40.8,4142.2,4142.1,0.3719]
[1761616200354,40.8,4142.2,4141.7,0.3719]
[1761616200651,1.30876727,4142.0,4141.7,0.3719]
[1761616201039,1.30876727,4142.0,4141.6,0.00300396]
[1761616201040,1.30324367,4142.1,4142.0,0.5205]
[1761616201246,1.30324367,4142.1,4142.0,0.7548]
[1761616201749,1.30324367,4142.1,4142.0,0.5205]
[1761616202147,42.10324367,4142.2,4142.0,0.1486]
[1761616202350,42.10324367,4142.2,4142.1,0.3719]
[1761616204260,40.8,4142.2,4142.1,0.3719]
[1761616204548,40.8,4142.2,4142.1,0.6062]
[1761616204549,42.10302787,4142.2,4142.1,0.6062]
[1761616206657,40.8,4142.2,4142.0,0.1486]
[1761616206964,1.30308484,4142.1,4142.0,0.463]
[1761616207466,1.30308484,4142.1,4142.0,0.6716]
[1761616207762,40.8,4142.2,4142.1,0.3144]
[1761616207963,40.8,4142.2,4142.1,0.523]
[1761616209760,40.8,4142.2,4142.1,0.7443]
[1761616211366,40.8,4142.2,4142.1,0.523]
[1761616212766,40.8,4142.2,4142.1,0.7443]
[1761616214159,42.10308484,4142.2,4142.1,0.7443]
[1761616215063,40.8,4142.2,4142.1,0.7443]
[1761616219164,40.8,4142.2,4142.1,0.3144]
[1761616219368,43.84129602,4142.2,4141.6,0.00300396]
[1761616219564,1.30876727,4141.8,4141.6,0.31740396]
[1761616219765,1.73252875,4142.1,4141.6,0.31740396]
[1761616219964,40.8,4141.7,4141.6,0.74730396]
[1761616220164,42.10232776,4141.7,4141.6,0.74730396]
[1761616220562,1.30232776,4142.1,4142.0,0.5547]
[1761616220768,1.30232776,4142.4,4142.3,0.2086]
[1761616220968,1.30232776,4142.4,4142.3,0.523]
[1761616221266,40.8,4142.4,4142.3,0.7443]